bitfinex/quotes_ETHUSD_20241123
["timestamp","ask_amount","ask_price","bid_price","bid_amount"]
[1732365009587,0.005,3363.4,3363.3,6.42165627]
[1732365009809,0.005,3363.4,3363.3,6.4513777]
[1732365010114,0.89214798,3365.7,3363.7,0.55]
[1732365010418,1.8358157,3366.6,3364.4,0.55]
[1732365010569,2.97,3366.3,3365.2,0.89214798]
[1732365010913,2.97,3366.3,3365.3,0.57970797]
[1732365012614,2.97,3366.3,3365.3,0.55]
[1732365013500,2.97,3366.3,3365.1,3.0]
[1732365013501,1.87428187,3366.2,3365.0,0.35107552]
[1732365013676,1.87428187,3366.2,3364.4,0.02971446]
[1732365014289,1.87428187,3366.2,3364.4,5.35872258]
[1732365014477,2.97,3366.3,3364.5,3.43874909]
[1732365014700,2.97,3366.3,3364.8,1.86928187]
[1732365014875,2.97,3366.3,3365.0,0.813]
[1732365015081,2.97,3366.3,3365.1,0.46845496]
[1732365015616,2.97,3366.3,3365.2,0.55]
[1732365015815,2.97,3366.3,3365.3,0.02970584]
[1732365016120,2.97,3366.3,3364.8,2.63466697]
[1732365016121,2.97,3366.3,3364.9,0.02970586]
[1732365016286,2.97,3366.3,3365.3,0.02970586]
[1732365016489,2.97,3366.3,3365.0,0.813]
[1732365016693,2.96,3366.5,3365.7,1.87428187]
[1732365017022,2.96,3366.5,3365.8,1.80256318]
[1732365017220,2.96,3366.5,3365.9,0.813]
[1732365017425,2.96,3366.5,3366.0,1.32910884]
[1732365017581,2.96,3366.5,3366.0,4.32910884]
[1732365017905,2.96,3366.5,3366.0,4.78383514]
[1732365018226,2.96,3366.5,3366.2,0.55]
[1732365018530,2.96,3366.5,3366.1,0.55]
[1732365020635,2.96,3366.5,3365.7,0.02970441]
[1732365020856,1.87428187,3366.3,3365.0,0.02970442]
[1732365021199,0.296,3366.4,3365.0,0.34036327]
[1732365021517,2.96,3366.5,3365.4,0.8271]
[1732365021693,2.96,3366.5,3365.5,1.13088616]
[1732365021888,2.96,3366.5,3365.6,1.3771]
[1732365022138,2.96,3366.5,3365.7,0.34036013]
[1732365022293,2.96,3366.5,3365.8,1.28822673]
[1732365022498,2.96,3366.5,3365.9,0.74275279]
[1732365022698,2.96,3366.5,3366.0,0.55]
[1732365022890,2.96,3366.5,3366.1,0.02970102]
[1732365023296,2.97,3366.9,3366.2,0.55]
[1732365023535,2.97,3366.9,3366.4,0.8118]
[1732365023735,2.97,3366.9,3366.6,0.55]
[1732365024751,0.1524822,3367.4,3366.6,0.55]
[1732365024752,0.1524822,3367.4,3366.9,0.8118]
[1732365024907,0.1524822,3367.4,3367.0,0.89034799]
[1732365025111,0.1524822,3367.4,3367.0,1.31473041]
[1732365025306,0.1524822,3367.4,3367.2,0.55]
[1732365025510,0.1524822,3367.4,3367.3,0.02969014]
[1732365025912,0.1524822,3367.4,3367.1,0.55]
[1732365026247,0.1524822,3367.4,3367.3,0.55]
[1732365026533,0.1524822,3367.4,3367.3,0.57968839]
[1732365026740,0.1524822,3367.4,3367.3,0.02968839]
[1732365026941,2.41041761,3369.3,3367.3,1.26587081]
[1732365027110,2.96,3368.6,3367.3,1.26587081]
[1732365027315,2.96,3368.6,3367.4,0.42438242]
[1732365027514,2.96,3368.6,3367.5,0.0296882]
[1732365027849,3.256,3368.6,3367.5,0.0296882]
[1732365028046,2.96,3368.6,3367.5,0.45407062]
[1732365028247,2.95,3369.2,3368.2,0.8118]
[1732365028397,2.95,3369.2,3368.3,0.55]
[1732365028746,2.95,3369.2,3368.3,0.68018962]
[1732365028929,2.95,3369.2,3368.4,0.02968022]
[1732365029537,2.95,3369.2,3368.5,0.42438242]
[1732365029740,2.95,3369.2,3368.6,0.02967925]
[1732365029911,2.95,3369.2,3368.7,1.57584127]
[1732365030658,2.95,3369.2,3368.7,0.76404127]
[1732365030947,1.0,3369.6,3368.7,0.42438242]
[1732365031100,1.0,3369.6,3368.4,0.02967813]
[1732365032122,1.0,3369.6,3368.5,0.42438242]
[1732365032308,1.0,3369.6,3368.6,0.02967814]
[1732365032515,1.0,3369.6,3368.3,0.8118]
[1732365032708,1.0,3369.6,3368.1,3.02968002]
[1732365032911,1.0,3369.6,3367.9,0.84148088]
[1732365033128,1.0,3369.6,3367.9,1.18113973]
[1732365033339,1.0,3369.6,3368.0,0.42438242]
[1732365033541,1.0,3369.6,3368.1,0.02968197]
[1732365033750,1.0,3369.6,3368.1,0.45406439]
[1732365034165,1.0,3369.6,3368.2,0.87479064]
[1732365034370,1.0,3369.6,3368.3,0.38747906]
[1732365034572,0.75,3369.6,3368.4,0.87478696]
[1732365034756,0.75,3369.6,3368.4,1.21444581]
[1732365034927,0.75,3369.6,3368.6,0.8118]
[1732365035125,0.75,3369.6,3368.7,0.6906511]
[1732365035333,0.75,3369.6,3368.8,0.42072625]
[1732365035536,0.75,3369.6,3369.2,2.41041761]
[1732365035826,0.7582,3371.6,3369.9,0.8118]
[1732365036053,0.7582,3371.6,3370.2,0.55]
[1732365036272,0.7582,3372.0,3370.4,0.8118]
[1732365036441,0.7582,3372.0,3370.6,3.0]
[1732365036636,0.7582,3372.0,3370.7,1.36936469]
[1732365036840,0.7582,3372.0,3370.7,0.81936469]
[1732365037551,0.7582,3372.0,3370.7,0.39498227]
[1732365037757,0.60438877,3372.4,3370.7,5.14156469]
[1732365038070,0.60438877,3372.4,3370.9,0.7722]
[1732365038272,3.22431761,3371.4,3370.7,0.42072625]
[1732365038570,3.22431761,3371.4,3369.3,0.7722]
[1732365038571,2.96,3371.2,3369.4,0.08929101]
[1732365039165,2.98965344,3371.2,3369.4,0.02966959]
[1732365039573,2.98965344,3371.2,3369.4,0.57966959]
[1732365041145,2.98965344,3371.2,3369.4,0.02966959]
[1732365041353,0.8139,3371.1,3369.4,0.57966959]
[1732365041883,1.38887719,3371.2,3370.3,0.55]
[1732365042082,0.8139,3372.0,3370.4,1.09790332]
[1732365042286,0.8139,3372.0,3370.6,5.41041761]
[1732365042582,0.8139,3372.0,3370.7,0.02965924]
[1732365042787,0.7501,3372.6,3370.9,0.55]
[1732365042946,0.02965344,3372.3,3371.0,0.02965569]
[1732365043144,0.7501,3372.6,3371.0,0.02965569]
[1732365043382,0.02965344,3372.3,3370.9,0.0296564]
[1732365044080,0.02965344,3372.3,3370.9,0.02965922]
[1732365044287,0.77975344,3372.6,3370.9,0.02965922]
[1732365045357,0.77975344,3372.6,3371.0,0.02965923]
[1732365045875,0.02965344,3372.5,3371.0,0.02965923]
[1732365046456,0.02965344,3372.5,3370.9,0.02965758]
[1732365047561,0.7501,3372.6,3371.1,0.55]
[1732365047762,0.7501,3372.9,3371.3,0.55]
[1732365047977,0.7501,3372.9,3371.4,0.0296525]
[1732365048183,0.005,3372.1,3371.5,0.7777]
[1732365048491,0.005,3372.1,3371.6,0.57965146]
[1732365048666,2.96,3373.0,3372.2,0.03515107]
[1732365049592,2.96,3373.0,3372.3,0.7777]
[1732365050605,2.96,3373.0,3372.2,0.03515107]
[1732365050765,0.02965344,3372.9,3372.2,0.03515107]
[1732365051164,2.96,3373.0,3372.2,0.03515107]
[1732365051800,2.96,3373.0,3372.2,0.06480093]
[1732365052100,0.296,3372.9,3372.3,0.02964823]
[1732365053159,0.296,3372.9,3372.2,0.03515107]
[1732365053901,0.32565344,3372.9,3372.2,0.03515107]
[1732365054292,0.7106,3372.8,3372.2,0.03515107]
[1732365054470,0.02965344,3372.7,3372.2,0.03515107]
[1732365055003,2.98965344,3373.0,3372.2,0.03515107]
[1732365055303,2.96,3373.0,3372.2,0.06480267]
[1732365056020,2.96,3373.0,3372.2,0.03515107]
[1732365056182,2.96,3373.0,3372.3,0.02964788]
[1732365056781,2.96,3373.0,3372.3,0.57964788]
[1732365056983,0.7106,3373.4,3372.3,0.55]
[1732365057179,0.7106,3373.4,3372.2,0.03515107]
[1732365057401,0.7106,3373.4,3372.2,0.06479737]
[1732365057615,0.02965344,3373.3,3372.2,0.03515107]
[1732365057820,0.7106,3373.2,3372.2,0.03515107]
[1732365058817,0.02965344,3373.1,3372.2,0.03515107]
[1732365059313,0.7106,3373.1,3372.2,0.03515107]
[1732365060008,0.02965344,3373.0,3372.2,0.03515107]
[1732365061625,0.74025344,3373.1,3372.2,0.03515107]
[1732365062014,0.7106,3372.7,3372.2,0.03515107]
[1732365062185,0.02965344,3372.6,3372.2,0.03515107]
[1732365062702,0.7106,3372.7,3372.2,0.03515107]
[1732365063190,0.7106,3372.7,3371.9,0.31889901]
[1732365063393,0.7106,3372.7,3371.2,1.10375685]
[1732365063601,0.7106,3372.7,3371.4,0.2964]
[1732365063944,0.7106,3372.7,3371.5,0.02965365]
[1732365064140,0.7106,3372.7,3371.6,0.801]
[1732365064637,0.7106,3372.7,3371.7,0.2964]
[1732365065838,0.7106,3373.4,3371.9,1.0974]
[1732365066141,0.7106,3373.4,3372.0,0.12204627]
[1732365066312,0.7106,3373.4,3372.1,0.38879759]
[1732365066519,0.7106,3373.4,3372.2,0.02964809]
[1732365067144,3.6606,3373.7,3372.4,0.2964]
[1732365067326,3.6606,3373.7,3372.5,0.02964652]
[1732365067913,3.6606,3373.7,3372.7,0.2964]
[1732365067914,2.95,3373.7,3372.7,0.2964]
[1732365068114,0.1524822,3374.2,3372.9,0.801]
[1732365068428,0.7106,3374.1,3373.0,0.0296397]
[1732365068746,0.02965344,3374.0,3372.9,0.801]
[1732365068947,0.02965344,3374.0,3372.3,0.801]
[1732365069115,0.02965344,3374.0,3372.4,0.02964761]
[1732365069116,0.7106,3373.9,3372.4,0.02964761]
[1732365069319,0.02965344,3373.8,3372.5,0.89338012]
[1732365069637,0.7106,3373.9,3372.6,0.12202466]
[1732365069840,0.7106,3373.9,3372.6,0.02964454]
[1732365070201,0.8630822,3374.2,3372.8,0.55]
[1732365070444,0.8130822,3374.2,3373.0,0.801]
[1732365070646,0.8130822,3374.2,3373.1,0.02963956]
[1732365071224,0.1024822,3374.2,3373.1,0.02963956]
[1732365071550,0.1024822,3374.2,3373.2,0.801]
[1732365071847,0.1024822,3374.2,3373.3,0.02963774]
[1732365072005,0.1024822,3374.2,3373.2,0.801]
[1732365072401,0.8130822,3374.2,3373.2,0.801]
[1732365072815,0.1024822,3374.2,3373.2,0.801]
[1732365073207,0.1024822,3374.2,3373.4,0.801]
[1732365073437,0.1024822,3374.2,3373.5,0.02963635]
[1732365073804,0.1024822,3374.2,3373.6,0.801]
[1732365074750,0.1024822,3374.2,3373.7,0.02963532]
[1732365074965,0.1024822,3374.2,3373.8,0.801]
[1732365075853,0.1024822,3374.2,3372.9,0.801]
[1732365076151,0.1024822,3374.2,3373.1,0.801]
[1732365076322,0.1024822,3374.2,3373.3,0.801]
[1732365076655,0.1024822,3374.2,3372.8,0.14779058]
[1732365076656,0.1024822,3374.2,3373.5,0.801]
[1732365076817,0.1024822,3374.2,3373.6,0.37014591]
[1732365077013,0.1024822,3374.2,3373.7,0.801]
[1732365077313,0.1024822,3374.2,3373.9,0.801]
[1732365078210,0.1024822,3374.2,3373.8,0.02963246]
[1732365078211,0.1024822,3374.2,3374.1,1.351]
[1732365078431,0.1024822,3374.2,3374.1,0.41362518]
[1732365079399,0.1024822,3374.2,3374.1,2.85366958]
[1732365079596,0.1024822,3374.2,3374.1,5.85366958]
[1732365079863,0.1024822,3374.2,3374.1,5.94599895]
[1732365080568,1.182419,3376.7,3375.1,2.41041761]
[1732365080729,0.78915344,3376.6,3375.2,0.02961731]
[1732365080929,0.78915344,3376.6,3375.2,0.38846147]
[1732365081125,0.78915344,3376.6,3374.9,0.38846188]
[1732365081555,0.78915344,3376.6,3375.0,0.801]
[1732365081739,0.7595,3377.2,3375.3,1.351]
[1732365081955,0.7595,3377.2,3375.5,0.55]
[1732365081956,1.18228,3377.0,3375.5,0.55]
[1732365082267,0.7595,3377.2,3375.8,0.55]
[1732365082473,0.02965344,3377.1,3375.7,0.8007]
[1732365082768,0.7791,3376.9,3375.7,0.8007]
[1732365082971,0.02965344,3376.8,3375.7,0.8007]
[1732365083865,0.7791,3376.9,3375.8,0.02961638]
[1732365084076,2.41041761,3376.1,3374.7,1.07255363]
[1732365084241,2.95,3377.5,3373.7,0.8007]
[1732365084242,0.7791,3375.6,3373.7,0.8007]
[1732365084579,0.7791,3375.6,3373.7,0.83033216]
[1732365084580,0.39919478,3375.6,3373.7,0.83033216]
[1732365085133,0.39919478,3375.6,3373.7,1.18917632]
[1732365085334,0.39919478,3375.6,3373.8,0.35884416]
[1732365085529,0.39919478,3375.6,3373.9,0.02963243]
[1732365085757,0.39919478,3375.6,3373.9,0.38847659]
[1732365086235,0.39919478,3375.6,3374.0,0.35884416]
[1732365086453,0.39919478,3375.6,3374.2,0.8007]
[1732365086749,0.39919478,3375.6,3374.3,0.93847169]
[1732365086959,0.39919478,3375.6,3374.3,0.02962753]
[1732365087165,0.39919478,3375.6,3374.3,0.02962687]
[1732365087851,0.39919478,3375.6,3374.4,0.02962836]
[1732365088172,0.39919478,3375.6,3374.4,0.35884416]
[1732365089073,0.58354527,3377.0,3374.7,0.55]
[1732365089074,0.7703,3376.2,3374.7,0.55]
[1732365089281,0.7703,3376.2,3374.8,0.38846835]
[1732365089641,0.7703,3376.7,3374.9,1.3011]
[1732365089834,3.18071761,3377.2,3375.2,0.55]
[1732365090040,0.7703,3377.2,3375.4,0.55]
[1732365090349,0.40417476,3377.1,3375.5,0.38846199]
[1732365090537,0.40417476,3377.1,3375.6,0.55]
[1732365090737,0.40417476,3377.1,3375.7,0.02961452]
[1732365090938,0.40417476,3377.1,3376.0,0.55]
[1732365091133,0.40417476,3377.1,3376.2,0.55]
[1732365091371,0.1524822,3377.6,3376.4,0.55]
[1732365091536,0.1524822,3377.6,3376.3,1.13955353]
[1732365091733,0.1524822,3377.6,3376.3,0.7511]
[1732365092138,0.1524822,3377.6,3376.3,1.10994416]
[1732365092343,0.7703,3377.5,3375.7,0.7511]
[1732365092538,0.7703,3377.5,3376.1,0.35884416]
[1732365092778,0.7703,3377.5,3376.1,0.38845651]
[1732365093148,3.18071761,3377.5,3375.8,0.02961281]
[1732365093349,0.33331998,3377.4,3375.9,0.35884416]
[1732365093575,0.1524822,3377.6,3376.0,3.9491515]
[1732365093879,0.1524822,3377.6,3376.3,0.7511]
[1732365094087,0.1524822,3377.6,3376.5,0.7511]
[1732365094237,0.1524822,3377.6,3376.6,0.72451769]
[1732365094441,0.1524822,3377.6,3376.7,0.48451537]
[1732365094639,0.1524822,3377.6,3376.8,0.42811657]
[1732365094848,0.1524822,3377.6,3376.8,0.39851083]
[1732365095275,0.1524822,3377.6,3376.8,0.4281197]
[1732365095479,0.1524822,3377.6,3376.9,0.36953601]
[1732365095778,0.1524822,3377.6,3377.1,0.7511]
[1732365095979,0.1524822,3377.6,3377.2,0.39851083]
[1732365096444,0.1524822,3377.6,3377.2,0.79765367]
[1732365096641,0.1524822,3377.6,3377.3,0.36953601]
[1732365096989,0.1524822,3377.6,3377.4,0.39851083]
[1732365099055,0.1524822,3377.6,3376.9,0.39851083]
[1732365099456,0.7703,3377.5,3376.7,0.04029549]
[1732365099969,0.7703,3377.5,3376.8,0.39851083]
[1732365100172,0.1524822,3377.6,3376.8,0.42812044]
[1732365100575,0.1524822,3377.6,3376.9,0.7511]
[1732365100773,0.1524822,3377.6,3376.9,1.14961083]
[1732365100986,0.1524822,3377.6,3377.0,0.39851083]
[1732365101310,0.1524822,3377.6,3376.7,0.04029549]
[1732365101480,1.02658998,3377.5,3376.7,0.04029549]
[1732365102282,0.7703,3377.5,3376.8,0.39851083]
[1732365103556,0.7703,3377.5,3376.7,0.04029549]
[1732365103792,0.7703,3377.5,3376.7,0.43880632]
[1732365103991,0.1524822,3377.6,3376.8,0.39851083]
[1732365106603,0.30815331,3377.5,3376.8,0.39851083]
[1732365106762,0.30815331,3377.5,3377.0,0.7974]
[1732365107123,0.30815331,3377.5,3377.1,0.58854512]
[1732365107265,0.30815331,3377.5,3377.1,0.42811702]
[1732365107466,0.30815331,3377.5,3377.1,0.79765303]
[1732365107691,0.30815331,3377.5,3377.2,0.30528776]
[1732365107882,0.30815331,3377.5,3377.3,0.39851083]
[1732365108063,0.30815331,3377.5,3377.4,0.30528776]
[1732365108260,0.30815331,3377.5,3377.4,0.70379859]
[1732365109542,0.30815331,3377.5,3377.4,1.51029859]
[1732365109689,0.30815331,3377.5,3377.4,7.91814606]
[1732365109893,0.30815331,3377.5,3377.4,7.62174606]
[1732365110114,0.30815331,3377.5,3377.4,7.91814606]
[1732365110312,0.30815331,3377.5,3377.4,1.95772845]
[1732365110628,0.30815331,3377.5,3377.4,5.32726446]
[1732365110790,0.30815331,3377.5,3377.4,2.32726446]
[1732365111688,0.30815331,3377.5,3377.4,2.87726446]
[1732365111885,0.30815331,3377.5,3377.4,5.87726446]
[1732365112739,0.005,3378.9,3378.6,0.55]
[1732365112886,0.005,3378.9,3378.8,0.55]
[1732365113095,0.005,3378.9,3378.8,5.06781911]
[1732365113388,0.005,3378.9,3378.8,5.36180956]
[1732365113829,0.005,3378.9,3378.8,6.16830956]
[1732365114232,0.005,3378.9,3378.8,5.72604755]
[1732365114400,0.005,3378.9,3378.8,6.16830956]
[1732365114731,0.005,3378.9,3378.8,5.7556319]
[1732365116603,0.005,3378.9,3378.8,5.8556319]
[1732365116807,0.7897,3381.2,3379.4,0.8065]
[1732365117122,0.7897,3381.2,3379.5,0.93028296]
[1732365117439,0.01221607,3381.5,3379.9,0.55]
[1732365117594,0.01221607,3381.5,3380.0,0.38027745]
[1732365117793,0.01221607,3381.5,3380.2,1.3099]
[1732365118128,0.7897,3381.7,3380.2,5.685493]
[1732365118330,0.7897,3381.7,3380.2,5.11862999]
[1732365118536,0.7897,3381.7,3380.2,4.69017731]
[1732365119415,0.5818289,3380.8,3380.2,4.69017731]
[1732365120019,0.5818289,3380.8,3380.2,5.11862999]
[1732365120199,0.5818289,3380.8,3380.3,4.3099]
[1732365120392,0.8252,3382.1,3380.6,0.55]
[1732365120627,0.8252,3382.1,3380.7,0.0295693]
[1732365120808,0.8252,3382.1,3380.9,0.55]
[1732365120996,0.8252,3382.1,3380.9,0.57956706]
[1732365121237,0.8252,3382.1,3380.9,1.01351377]
[1732365122829,0.8252,3382.1,3380.9,0.43394671]
[1732365123000,0.8252,3382.1,3380.7,0.02956691]
[1732365123403,0.8252,3382.1,3380.8,0.55]
[1732365123632,0.8252,3382.1,3380.7,0.78606691]
[1732365123902,0.8252,3382.1,3380.7,0.02956691]
[1732365124216,0.8065,3381.9,3380.8,0.45067222]
[1732365124400,0.8065,3381.9,3380.9,0.02957353]
[1732365124603,0.8065,3381.9,3381.0,0.45067222]
[1732365124945,0.8065,3381.9,3380.5,0.48024575]
[1732365125104,0.8065,3381.9,3380.5,0.64302032]
[1732365126342,0.1,3381.3,3380.4,0.04029549]
[1732365126547,0.8065,3381.1,3380.4,0.04029549]
[1732365128023,0.8065,3380.8,3380.4,0.04029549]
[1732365128204,0.8065,3380.6,3380.4,0.04029549]
[1732365128540,3.21691761,3380.5,3380.4,0.04029549]
[1732365129312,0.8065,3380.2,3378.0,0.78609196]
[1732365129635,0.8065,3379.7,3378.3,0.42178947]
[1732365129837,0.8065,3379.7,3378.4,0.02959782]
[1732365130001,0.8065,3379.7,3378.5,0.42178947]
[1732365130203,2.41041761,3381.0,3378.6,3.02208664]
[1732365130402,0.63057188,3380.3,3378.7,1.17828947]
[1732365130625,0.63057188,3380.3,3378.8,1.188175]
[1732365130903,2.71532192,3381.5,3379.1,0.55]
[1732365131106,2.81532192,3381.5,3379.2,0.42178947]
[1732365131325,0.28153219,3381.4,3379.2,0.45137117]
[1732365132107,0.28153219,3381.4,3379.3,0.55]
[1732365132348,0.28153219,3381.4,3379.4,0.45137287]
[1732365132556,0.29968541,3381.3,3379.4,0.45137287]
[1732365133064,0.30887991,3381.3,3379.4,0.42178947]
[1732365133546,0.8065,3381.1,3379.2,0.02958622]
[1732365133755,0.9065,3381.1,3379.3,0.42178947]
[1732365133951,0.9156945,3381.1,3379.3,0.42178947]
[1732365134118,0.8065,3380.9,3379.3,0.42178947]
[1732365134314,0.8065,3380.7,3379.3,0.42178947]
[1732365134847,0.8065,3380.7,3380.5,3.0]
[1732365135050,0.8065,3380.7,3379.3,0.42178947]
[1732365135294,0.8065,3380.7,3378.6,0.16296768]
[1732365135432,2.71532192,3380.5,3378.6,0.42178947]
[1732365135632,0.8065,3380.4,3378.6,0.42178947]
[1732365135955,2.71532192,3380.0,3377.7,0.78609205]
[1732365136154,2.71532192,3379.5,3377.7,0.7565]
[1732365136316,0.8065,3379.3,3377.3,0.7565]
[1732365136515,2.71532192,3379.0,3377.4,0.42178947]
[1732365136723,0.8065,3378.9,3377.4,0.42178947]
[1732365137220,0.8065,3378.9,3376.8,0.02960475]
[1732365137414,0.8065,3378.7,3377.0,0.42178947]
[1732365137613,5.9209,3378.8,3377.1,1.04690109]
[1732365137926,5.9209,3378.6,3377.3,0.7565]
[1732365138251,5.9209,3378.6,3377.2,1.35175061]
[1732365138252,5.9209,3378.6,3377.6,0.2964]
[1732365138431,5.9209,3378.6,3377.8,0.2964]
[1732365138624,5.9209,3378.6,3378.0,0.2964]
[1732365138813,5.9209,3378.6,3378.3,0.55]
[1732365139467,5.9209,3378.6,3378.2,0.2964]
[1732365139842,5.9209,3378.6,3378.1,0.2964]
[1732365140188,5.9209,3378.6,3378.2,0.8464]
[1732365140327,5.9209,3378.6,3378.2,0.2964]
[1732365141037,5.9209,3378.6,3378.4,1.3065]
[1732365141634,5.9209,3378.6,3378.4,0.7565]
[1732365142167,5.9209,3378.6,3378.1,0.2964]
[1732365142727,5.9209,3378.6,3378.1,0.74358682]
[1732365142949,5.9209,3378.6,3378.1,0.71398996]
[1732365143650,5.9209,3378.6,3378.1,0.2964]
[1732365143864,5.9209,3378.6,3377.8,0.32599748]
[1732365144179,5.9209,3378.6,3378.0,0.2964]
[1732365144333,5.9209,3378.6,3378.1,0.02960021]
[1732365144664,5.9209,3378.6,3378.3,0.8146]
[1732365144871,5.9209,3378.6,3378.4,0.15581902]
[1732365145235,5.9209,3378.6,3378.5,0.2964]
[1732365145972,5.9209,3378.6,3378.5,0.8464]
[1732365147443,0.7722,3379.9,3378.6,0.8464]
[1732365147648,0.7722,3379.9,3378.7,0.02958836]
[1732365148866,0.7722,3379.9,3378.7,0.44717832]
[1732365149067,0.7722,3379.9,3378.8,0.55]
[1732365149272,0.7722,3379.9,3379.1,0.55]
[1732365149469,0.7535,3380.9,3380.5,3.0]
[1732365149670,1.02891222,3380.9,3380.5,3.0]
[1732365149980,0.7535,3380.9,3379.2,0.02958613]
[1732365150550,0.02960582,3380.8,3379.2,0.02958613]
[1732365151547,0.7535,3380.9,3379.4,0.55]
[1732365151752,0.7535,3380.9,3379.5,0.02958142]
[1732365152491,0.7535,3380.9,3379.7,0.55]
[1732365152690,0.7535,3380.9,3379.6,0.7992]
[1732365152691,0.0091945,3381.1,3379.9,0.55]
[1732365152864,0.0091945,3381.1,3380.0,0.02957849]
[1732365154087,0.0091945,3381.1,3380.3,0.7992]
[1732365154275,0.0091945,3381.1,3380.4,2.64780785]
[1732365154459,0.0091945,3381.1,3380.5,3.0]
[1732365154648,0.0091945,3381.1,3380.6,0.02956947]
[1732365155052,0.0091945,3381.1,3380.7,0.96758996]
[1732365155252,0.0091945,3381.1,3380.8,0.0295704]
[1732365155449,0.0091945,3381.1,3381.0,0.55]
[1732365155768,0.0091945,3381.1,3381.0,0.81420337]
[1732365155950,0.0091945,3381.1,3381.0,0.55]
[1732365156146,0.0091945,3381.1,3380.9,0.7992]
[1732365156657,0.0091945,3381.1,3381.0,0.57957206]
[1732365158187,0.0091945,3381.1,3380.9,0.7992]
[1732365158369,0.0091945,3381.1,3381.0,0.02957041]
[1732365158553,0.0091945,3381.1,3381.0,0.57957041]
[1732365158754,0.0091945,3381.1,3381.0,1.55840645]
[1732365158993,0.0091945,3381.1,3381.0,1.97599641]
[1732365159608,0.0091945,3381.1,3381.0,1.97599408]
[1732365159756,0.0091945,3381.1,3381.0,1.946426]
[1732365159957,0.0091945,3381.1,3380.7,0.029572]
[1732365160193,0.0091945,3381.1,3380.7,0.99716196]
[1732365161675,0.0091945,3381.1,3380.8,0.41758996]
[1732365161873,0.0091945,3381.1,3380.9,0.57957123]
[1732365162106,0.0091945,3381.1,3381.0,0.15471612]
[1732365162405,0.0091945,3381.1,3381.0,0.57230608]
[1732365162555,0.0091945,3381.1,3381.0,1.12230608]
[1732365162761,0.0091945,3381.1,3381.0,1.15187449]
[1732365163399,0.0091945,3381.1,3381.0,1.44827449]
[1732365164614,0.57765905,3381.5,3381.2,0.2964]
[1732365164763,0.7518,3382.7,3381.2,0.2964]
[1732365164764,0.7518,3382.7,3381.6,0.2964]
[1732365165104,0.1,3384.3,3381.4,2.39071651]
[1732365165105,0.7518,3383.7,3382.0,0.2964]
[1732365165391,0.7518,3383.7,3382.2,0.2964]
[1732365165567,0.7518,3383.7,3382.3,0.0295577]
[1732365165717,0.7518,3383.7,3382.8,0.2964]
[1732365166056,0.7518,3383.7,3382.9,0.02955352]
[1732365166212,0.7518,3383.7,3382.5,0.02955352]
[1732365166400,0.7518,3383.7,3382.6,0.8464]
[1732365166601,0.7518,3383.7,3382.7,0.02955378]
[1732365168026,0.7518,3383.7,3382.6,0.8759528]
[1732365168232,0.7518,3383.7,3382.6,0.60879615]
[1732365168404,0.02960582,3383.6,3382.6,0.0295528]
[1732365168603,0.7518,3383.7,3382.6,0.0295528]
[1732365169006,0.7518,3384.1,3382.7,0.41758996]
[1732365169221,0.1501789,3384.5,3383.0,0.55]
[1732365169581,0.1501789,3384.5,3383.2,0.55]
[1732365169783,0.1501789,3384.5,3383.4,0.55]
[1732365169924,0.1501789,3384.5,3383.6,0.55]
[1732365170266,0.1501789,3384.5,3383.7,0.44713384]
[1732365170486,0.7518,3384.4,3383.7,0.44713384]
[1732365170769,0.1501789,3384.5,3383.7,0.99713384]
[1732365171970,0.1501789,3384.5,3383.7,1.75533384]
[1732365172175,0.1501789,3384.5,3383.7,2.29750177]
[1732365173857,0.1501789,3384.5,3383.7,2.00710068]
[1732365174274,0.1501789,3384.5,3383.7,1.20533384]
[1732365174275,0.9019789,3384.5,3383.7,1.20533384]
[1732365174470,0.9019789,3384.5,3383.7,0.44713384]
[1732365175325,0.1501789,3384.5,3383.7,0.84923472]
[1732365175631,0.1501789,3384.5,3383.7,2.15743472]
[1732365176271,1.66979633,3384.6,3383.8,4.45824544]
[1732365176481,1.66979633,3384.6,3383.9,0.44713298]
[1732365176777,1.66979633,3384.6,3384.0,0.95210088]
[1732365177072,1.66979633,3384.6,3384.2,0.55]
[1732365177229,1.66979633,3384.6,3384.2,0.96758996]
[1732365177435,1.66979633,3384.6,3384.3,0.41758996]
[1732365178877,2.42159633,3384.6,3384.3,0.41758996]
[1732365179046,1.66979633,3384.6,3384.3,0.41758996]
[1732365180280,1.97109388,3384.6,3384.3,0.41758996]
[1732365180576,0.7518,3384.5,3383.4,0.0295472]
[1732365180782,0.7518,3384.5,3383.5,0.41758996]
[1732365181075,1.02408939,3384.5,3383.5,0.41758996]
[1732365181863,0.7518,3384.5,3383.5,0.41758996]
[1732365182180,1.66979633,3384.6,3383.8,0.55]
[1732365182331,1.66979633,3384.6,3384.0,0.55]
[1732365182536,1.66979633,3384.6,3384.2,0.55]
[1732365182745,1.66979633,3384.6,3384.4,0.55]
[1732365183268,1.66979633,3384.6,3384.5,0.71398996]
[1732365183785,1.66979633,3384.6,3384.5,1.26398996]
[1732365183933,1.66979633,3384.6,3384.5,2.02698996]
[1732365185212,1.66979633,3384.6,3384.5,1.6094]
[1732365185432,1.66979633,3384.6,3384.5,2.02698996]
[1732365185579,1.66979633,3384.6,3384.5,2.23264327]
[1732365186092,1.66979633,3384.6,3384.5,5.55258523]
[1732365188400,0.5754285,3386.2,3384.5,4.78958523]
[1732365188595,0.7995,3386.5,3384.9,0.8464]
[1732365188800,0.7995,3386.5,3385.1,0.2964]
[1732365189016,0.7995,3386.5,3385.2,0.029532]
[1732365191106,0.7995,3386.5,3385.5,0.763]
[1732365191284,0.7995,3386.5,3385.6,0.99711994]
[1732365191616,0.7995,3387.3,3385.6,0.99711994]
[1732365191798,0.82910582,3387.3,3385.8,0.55]
[1732365191998,0.82910582,3387.3,3385.9,0.02952809]
[1732365192200,0.82910582,3387.3,3385.9,0.44711805]
[1732365192524,0.7845558,3387.3,3385.9,0.44711805]
[1732365192826,0.75494998,3387.3,3385.9,0.44711805]
[1732365192967,0.75494998,3387.3,3386.0,0.55]
[1732365193171,0.17978472,3387.8,3386.3,0.55]